Cogmind - Beta 14 --- EXPLORER MODE // 2024.08.13 @ 07:57:24 // Winter2019/RPGLIKE Player: Haldron Result: Self-destructed Performance ------------- Evolutions (1) 500 Regions Visited (6) 1200 Robots Destroyed (110) 550 Value Destroyed (2284) 2284 Prototype IDs (35) 700 Alien Tech Used (0) 0 Bonus (512) 512 TOTAL SCORE: 5746 Bonus ------- High Alert Combat Kills 212 Aligned with FarCom 300 Cogmind --------- Core Integrity 800/800 Matter 300/300 Energy 510/510 System Corruption 0% Temperature Cool (0) Movement Walking (90) Location -8/Mines Parts ------- > --- POWER (1) -------- Light Nuclear Core > --- PROPULSION (4) --- Potential Leg Potential Leg > --- UTILITY (5) ------ Cooling System Cooling System High-capacity Battery Advanced Visual Processing Unit Hardened Light Armor Plating > --- WEAPON (4) ------- Spread Laser Spread Laser Spread Laser Spread Laser > --- INVENTORY (5) ---- High-capacity Matter Pod (200) Authchip [R/Combat] Splice Drone Bay (6/6) Mini Grenade Launcher Great Maul Peak State ------------ > --- POWER ------------ Light Nuclear Core > --- PROPULSION ------- Potential Leg Potential Leg Improved VTOL Module Improved VTOL Module > --- UTILITY ---------- Heat Sink Cooling System High-capacity Battery Advanced Visual Processing Unit Hardened Light Armor Plating > --- WEAPON ----------- Spread Laser Spread Laser Spread Laser Spread Laser > --- INVENTORY -------- Cooling System Tractor Beam Splice Drone Bay Mini Grenade Launcher Makeshift Axe [Rating: 49] Favorites ----------- Power Ion Engine Engine Ion Engine Power Core Light Nuclear Core Propulsion Improved VTOL Module Leg Potential Leg Wheel Armored Wheel Flight Unit Improved VTOL Module Utility Cooling System Device Cooling System Storage High-capacity Battery Processor Advanced Visual Processing Unit Protection Light Armor Plating Weapon Spread Laser Energy Gun Spread Laser Ballistic Gun Light Assault Rifle Launcher Mini Grenade Launcher Impact Weapon Heavy Hammer Build | -11 -10 -10 -9 -9 -9 -8 ------- Run | Yrd Mat Min Mat Min Exi Min Slots Evolved 10 | 4 2 . 4 . . . Power . | . . . . . . . Propulsion 3 | 1 . . 2 . . . Utility 4 | 2 . . 2 . . . Weapon 3 | 1 2 . . . . . Parts Attached 41 | 7 9 3 12 7 3 . Power 3 | 1 . . 1 1 . . Engine 2 | 1 . . 1 . . . Core 1 | . . . . 1 . . Reactor . | . . . . . . . Propulsion 11 | 2 3 . 4 . 2 . Treads . | . . . . . . . Leg 4 | 2 . . . . 2 . Wheel 3 | . 3 . . . . . Hover . | . . . . . . . Flight 4 | . . . 4 . . . Utility 15 | 2 2 3 3 4 1 . Device 9 | 1 2 1 1 3 1 . Storage 2 | . . 1 . 1 . . Processor 1 | . . . 1 . . . Hackware . | . . . . . . . Protection 3 | 1 . 1 1 . . . Artifact . | . . . . . . . Weapon 12 | 2 4 . 4 2 . . Energy Gun 8 | 1 4 . 2 1 . . Energy Cannon . | . . . . . . . Ballistic Gun 1 | 1 . . . . . . Ballistic Cannon . | . . . . . . . Launcher 1 | . . . 1 . . . Special Weapon . | . . . . . . . Impact Weapon 2 | . . . 1 1 . . Slashing Weapon . | . . . . . . . Piercing Weapon . | . . . . . . . Special Melee Weapon . | . . . . . . . Unidentified Prototypes 3 | . . 1 1 1 . . Parts Lost . | . . . . . . . Power . | . . . . . . . Propulsion . | . . . . . . . Utility . | . . . . . . . Weapon . | . . . . . . . Highest Loss Streak . | . . . . . . . To Critical Strikes . | . . . . . . . Average Slot Usage (%) 95 | . 98 99 95 100 90 85 Engine 7 | . 10 10 7 3 . . Core 1 | . . . . 3 7 7 Leg 3 | . 2 . . . 8 14 Wheel 9 | . 19 20 . . . . Flight 9 | . . . 26 28 10 . Device 14 | . 21 12 9 14 14 14 Storage 5 | . . 7 7 7 7 7 Processor 2 | . . . 2 7 7 7 Protection 8 | . 10 10 7 7 7 7 Energy Gun 32 | . 32 40 31 28 28 28 Peak Build Rating 49 | 7 17 25 32 39 49 42 Average Rating 24 | 4 14 17 27 32 38 42 On Entrance 21 | . 7 17 18 32 34 42 Naked Turns . | . . . . . . . Heaviest Build 30 | 12 23 26 28 29 30 30 Greatest Support 70 | 20 24 24 29 29 70 70 Greatest Overweight (x) 6 | 3 6 1 2 . . . Average Overweight (x) . | . . . . . . . Largest Inventory Capacity 5 | 3 3 3 4 5 5 5 Average Capacity 3 | 3 3 3 3 4 5 5 Most Carried 5 | . 3 3 4 5 5 5 Average Carried 3 | . 2 2 3 4 4 4 Final Capacity 5 | 3 3 3 4 5 5 5 Final Carried 5 | . 3 3 3 5 5 5 Class Distribution -------------------- 54% | Hacker-Gunner 29% | Hacker-Sprinter 13% | Hacker-Skirmisher 3% | Hacker-Mutant Dominant Class ---------------- Hacker-Gunner | -10/Materials Hacker-Gunner | -10/Mines Hacker-Sprinter | -9/Materials Hacker-Sprinter | -9/Mines Hacker-Gunner | -9/Exiles Hacker-Skirmisher | -8/Mines Resources | -11 -10 -10 -9 -9 -9 -8 ----------- Run | Yrd Mat Min Mat Min Exi Min Matter Collected 720 | 270 110 60 130 50 100 . Remotely . | . . . . . . . Salvage Created 2804 | 78 681 437 1124 270 . 214 Parts 220 | 3 53 26 89 20 . 29 Haulers Intercepted 7 | . 2 . 5 . . . Recyclers Shooed 2 | 1 . . 1 . . . Parts Field Recycled . | . . . . . . . Retrieved Matter . | . . . . . . . Parts Self-Destructed . | . . . . . . . Prevented . | . . . . . . . Kills | -11 -10 -10 -9 -9 -9 -8 ------- Run | Yrd Mat Min Mat Min Exi Min Combat Hostiles Destroyed 69 | . 10 9 30 6 . 14 Guns 69 | . 10 9 30 6 . 14 Classes Destroyed 12 | 1 7 2 2 . . . Worker 6 | . 2 2 2 . . . Builder 4 | . 2 . 1 1 . . Tunneler 3 | . 1 1 . . . 1 Hauler 7 | . 2 . 5 . . . Recycler 12 | 1 3 1 3 3 . 1 Operator 1 | . . . 1 . . . Watcher 8 | . 3 . 5 . . . Swarmer 27 | . 2 4 5 4 . 12 Grunt 27 | . 8 2 14 2 . 1 Brawler 2 | . . . 1 . . 1 Sentry 12 | . . 2 10 . . . Demolisher 1 | . . 1 . . . . Best Kill Streak 21 | 1 5 3 21 7 . 4 Combat Bots Only 7 | . 4 2 7 2 . 3 Max Kills in Single Turn 3 | 1 2 2 3 1 . 3 Gunslinging 2 | . 1 1 2 . . 2 Exploded . | . . . . . . . Melee . | . . . . . . . Uniques/NPCs Destroyed . | . . . . . . . Combat | -11 -10 -10 -9 -9 -9 -8 -------- Run | Yrd Mat Min Mat Min Exi Min Hostile Shots Fired 88 | . 14 9 38 8 . 19 Missed 31 | . 3 2 18 4 . 4 Damage Taken 443 | . 139 71 137 22 . 74 Core 321 | . 104 53 99 16 . 49 Absorbed by Shields . | . . . . . . . Redirected to Core 260 | . 89 50 65 12 . 44 Ignored by Resistances 281 | . 81 45 87 15 . 53 Core Remaining (%) 94 | 100 . 89 . . . . Volleys Fired 121 | 3 35 13 47 11 . 12 Largest 4 | 1 4 4 4 4 . 4 Hottest 260 | 40 260 260 260 260 . 260 Shots Fired 443 | 3 111 52 185 44 . 48 Gun 442 | 3 111 52 184 44 . 48 Cannon . | . . . . . . . Launcher 1 | . . . 1 . . . Special . | . . . . . . . Kinetic . | . . . . . . . Thermal 439 | . 111 52 184 44 . 48 Explosive 1 | . . . 1 . . . Electromagnetic 3 | 3 . . . . . . Robot Hit Streak 44 | 3 18 19 44 24 . 23 Robot Miss Streak 5 | . 5 3 3 2 . 4 Penetration Max . | . . . . . . . Secondary Targets 15 | . 1 1 8 1 . 4 Max Gunslinging Chain 2 | . 1 1 2 1 . 2 Shots Hit Robots 270 | 3 55 29 128 25 . 30 Core Hits 442 | 2 91 52 209 40 . 48 Critical Kills . | . . . . . . . Critical Parts Destroyed . | . . . . . . . Critical Strikes . | . . . . . . . Melee Attacks 2 | . . . 1 1 . . Impact 2 | . . . 1 1 . . Slashing . | . . . . . . . Piercing . | . . . . . . . Sneak Attacks . | . . . . . . . Combat Hostiles . | . . . . . . . Follow-up Attacks . | . . . . . . . Damage Inflicted 4419 | 40 830 394 2309 422 . 424 Guns 4419 | 40 830 394 2309 422 . 424 Cannons . | . . . . . . . Explosions . | . . . . . . . Melee . | . . . . . . . Ramming . | . . . . . . . Kinetic . | . . . . . . . Thermal 4379 | . 830 394 2309 422 . 424 Explosive . | . . . . . . . Electromagnetic 40 | 40 . . . . . . Impact . | . . . . . . . Slashing . | . . . . . . . Piercing . | . . . . . . . Highest Corruption 1 | . 1 1 . . . . Average Corruption 1 | . 1 1 . . . . Corruption Purged . | . . . . . . . Corruption Blocked . | . . . . . . . Effects 14 | . 5 9 . . . . Message Errors 4 | . 1 3 . . . . Matter Fused 7 | . 3 4 . . . . Energy Discharges 1 | . . 1 . . . . Data Loss (minor) 2 | . 1 1 . . . . Overload Shots . | . . . . . . . Overflow Damage . | . . . . . . . Projectiles . | . . . . . . . Explosions . | . . . . . . . Melee . | . . . . . . . Knockbacks . | . . . . . . . Impact . | . . . . . . . Kinetic . | . . . . . . . Secondary . | . . . . . . . Self-Inflicted Damage 63 | . 63 . . . . . Shots 1 | . 1 . . . . . Rammed . | . . . . . . . Targets Rammed . | . . . . . . . Kicked . | . . . . . . . Crushed . | . . . . . . . Highest Temperature 237 | . 135 60 237 45 . 26 Average Temperature 45 | . 44 34 55 10 . 25 Received Heat Transfer 231 | . 72 18 105 9 . 27 Siege Activations . | . . . . . . . Robots Corrupted . | . . . . . . . Combat Hostiles . | . . . . . . . Parts Fried . | . . . . . . . Impact Corruptions . | . . . . . . . Robots Melted . | . . . . . . . Combat Hostiles . | . . . . . . . Parts Melted 4 | . . . 4 . . . Heat Transferred 5485 | . 1055 485 2900 535 . 510 Parts Sabotaged . | . . . . . . . Parts Stolen . | . . . . . . . Parts Stripped . | . . . . . . . Power Chain Reactions . | . . . . . . . Alert | -11 -10 -10 -9 -9 -9 -8 ------- Run | Yrd Mat Min Mat Min Exi Min Peak Influence 816 | 5 234 207 816 395 . 330 Initial 221 | . 2 2 16 221 . . Average 204 | 3 78 92 469 365 . 102 Maximum Alert Level 3 | . 1 1 3 1 . 1 Low Security (%) 65 | 100 97 91 23 . . 72 Level 1 19 | . 2 8 15 100 . 27 Level 2 8 | . . . 36 . . . Level 3 5 | . . . 24 . . . Level 4 . | . . . . . . . Level 5 . | . . . . . . . High Security . | . . . . . . . Max Security . | . . . . . . . Squads Dispatched 4 | . 2 . 2 . . . Investigation 4 | . 2 . 2 . . . Extermination . | . . . . . . . Reinforcement . | . . . . . . . Assault . | . . . . . . . Garrison . | . . . . . . . Intercept . | . . . . . . . Searches Triggered . | . . . . . . . Construction Impeded . | . . . . . . . Haulers Reinforced . | . . . . . . . Active Scanning Responses . | . . . . . . . Cargo Convoy Interrupts . | . . . . . . . Stealth | -11 -10 -10 -9 -9 -9 -8 --------- Run | Yrd Mat Min Mat Min Exi Min Distress Signals 2 | . 1 . 1 . . . Communications Jammed . | . . . . . . . Distress Signals . | . . . . . . . Times Spotted 76 | . 14 7 36 5 . 14 Peak Tracking Total 4 | . 2 2 4 1 . 3 Tactical Retreats . | . . . . . . . Traps | -11 -10 -10 -9 -9 -9 -8 ------- Run | Yrd Mat Min Mat Min Exi Min Traps Triggered 1 | . 1 . . . . . Indirectly . | . . . . . . . Trap Hack Attempts . | . . . . . . . Triggered . | . . . . . . . Disarmed 8 | . 8 . . . . . Reprogrammed 6 | . . . 6 . . . Reused . | . . . . . . . Traps Extracted . | . . . . . . . Installed . | . . . . . . . Triggered . | . . . . . . . Machines | -11 -10 -10 -9 -9 -9 -8 ---------- Run | Yrd Mat Min Mat Min Exi Min Machines Disabled 5 | . 2 . 2 1 . . Max in Single Turn 2 | . 2 . 2 1 . . Machines Repaired . | . . . . . . . Machines Dismantled . | . . . . . . . Machines Sabotaged . | . . . . . . . Overloaded Fab Kills . | . . . . . . . Hacking | -11 -10 -10 -9 -9 -9 -8 --------- Run | Yrd Mat Min Mat Min Exi Min Machines Accessed 18 | . 5 1 9 1 2 . Terminals 14 | . 5 1 8 . . . Fabricators . | . . . . . . . Repair Stations . | . . . . . . . Recycling Units . | . . . . . . . Scanalyzers 1 | . . . 1 . . . Garrison Access . | . . . . . . . Total Hacks 62 | . 23 2 34 1 2 . Successful 49 | . 16 2 28 1 2 . Failed 13 | . 7 . 6 . . . Catastrophic 3 | . 2 . 1 . . . Database Lockouts . | . . . . . . . Manual 38 | . 14 1 22 . 1 . Terminals 56 | . 23 2 31 . . . Fabricators . | . . . . . . . Repair Stations . | . . . . . . . Recycling Units . | . . . . . . . Scanalyzers 3 | . . . 3 . . . Garrison Access . | . . . . . . . Terminal Hacks 34 | . 11 1 19 1 2 . Record 2 | . . 1 . . 1 . Part Schematic 1 | . 1 . . . . . Robot Analysis 4 | . 1 . 3 . . . Prototype ID Bank 5 | . 2 . 3 . . . Open Door 1 | . . . . 1 . . Terminal Index 1 | . . . 1 . . . Scanalyzer Index 1 | . . . 1 . . . Alert Level 1 | . . . 1 . . . Locate Traps 5 | . 1 . 4 . . . Disarm Traps 2 | . 2 . . . . . Reprogram Traps 1 | . . . 1 . . . Surveillance Status 1 | . . . 1 . . . Hauler Manifests 2 | . 2 . . . . . Registered Components 2 | . 1 . 1 . . . Registered Prototypes 3 | . 1 . 2 . . . Zone Layout 1 | . . . 1 . . . Derelict Proto ID Bank 1 | . . . . . 1 . Fabricator Hacks . | . . . . . . . Repair Station Hacks . | . . . . . . . Recycling Unit Hacks . | . . . . . . . Scanalyzer 2 | . . . 2 . . . Insert Component 1 | . . . 1 . . . Analyze 1 | . . . 1 . . . Garrison Access Hacks . | . . . . . . . Unauthorized Hacks 13 | . 5 1 7 . . . Terminals 13 | . 5 1 7 . . . Track 1 | . . 1 . . . . Assimilate 1 | . . . 1 . . . Botnet 11 | . 5 . 6 . . . Fabricators . | . . . . . . . Repair Stations . | . . . . . . . Recycling Units . | . . . . . . . Scanalyzers . | . . . . . . . Garrison Access . | . . . . . . . Data Cores Recovered 1 | . . . 1 . . . Used . | . . . . . . . Hacking Detections 11 | . 5 . 6 . . . Full Trace Events 8 | . 4 . 4 . . . Feedback Events . | . . . . . . . Feedback Blocked . | . . . . . . . Robot Schematics Acquired . | . . . . . . . Robots Built . | . . . . . . . Authchips . | . . . . . . . Time . | . . . . . . . Total Robot Build Rating . | . . . . . . . Part Schematics Acquired 2 | . 1 . 1 . . . Parts Built . | . . . . . . . Authchips . | . . . . . . . Time . | . . . . . . . Total Part Build Rating . | . . . . . . . Parts Repaired . | . . . . . . . Time . | . . . . . . . Parts Recycled . | . . . . . . . Recycled Matter . | . . . . . . . Retrieved Matter . | . . . . . . . Retrieved Components . | . . . . . . . Parts Scanalyzed 1 | . . . 1 . . . Part Schematics Acquired 1 | . . . 1 . . . Parts Damaged . | . . . . . . . Bothacking | -11 -10 -10 -9 -9 -9 -8 ------------ Run | Yrd Mat Min Mat Min Exi Min Used RIF Installer . | . . . . . . . Robots Hacked . | . . . . . . . Non-combat . | . . . . . . . Combat . | . . . . . . . Robot Hacks Applied . | . . . . . . . Relay Couplers Released . | . . . . . . . Fabnet Peak Effective % . | . . . . . . . Robots Rewired . | . . . . . . . Allies Hacked . | . . . . . . . Hacks Repelled . | . . . . . . . Allies | -11 -10 -10 -9 -9 -9 -8 -------- Run | Yrd Mat Min Mat Min Exi Min Total Allies 1 | . . . 1 . . . Largest Group 1 | . . . 1 1 1 1 Highest-Rated Group 10 | . . . 10 10 10 10 Highest-Rated Ally 10 | . . . 10 10 10 10 Total Orders 3 | . . . . 3 . . STAY 3 | . . . . 3 . . Ally Attacks . | . . . . . . . Total Damage . | . . . . . . . Kills . | . . . . . . . Allies Corrupted . | . . . . . . . Allies Melted . | . . . . . . . Intel | -11 -10 -10 -9 -9 -9 -8 ------- Run | Yrd Mat Min Mat Min Exi Min Robot Analysis Total 4 | . 1 . 3 . . . Derelict Logs Recovered . | . . . . . . . Drone Launches . | . . . . . . . Drone Recoveries . | . . . . . . . Exploration | -11 -10 -10 -9 -9 -9 -8 ------------- Run | Yrd Mat Min Mat Min Exi Min Turns Passed 3348 | 66 948 631 757 299 210 437 Spaces Moved 4203 | 41 801 554 1333 634 414 426 Core 16 | 13 3 . . . . . Treads . | . . . . . . . Legs 640 | 28 49 . . . 137 426 Wheels 1330 | . 749 554 27 . . . Hover . | . . . . . . . Flight 2217 | . . . 1306 634 277 . Fastest Speed 27 | 50 90 90 27 27 27 90 Average Speed 60 | 121 92 101 33 27 47 90 Slowest Speed 350 | 200 350 105 180 27 90 90 Overloaded Moves . | . . . . . . . Propulsion Burnouts . | . . . . . . . Robots Hopped 8 | . . . 8 . . . Cave-ins Triggered . | . . . . . . . Exploration Rate (%) 76 | 4 97 100 96 98 68 70 Regions Visited 6 Branch Regions 4 Pre-discovered Areas 2 | . . . . 1 1 . Known Exits Taken 6 | 1 1 1 1 1 1 . Unknown Exits Taken . | . . . . . . . Scrap Searched 2 | . . . . 1 . 1 Spaces Dug 1 | . . . 1 . . . Terrain Destroyed 56 | . 37 . 19 . . . Melee 1 | . . . 1 . . . Projectile . | . . . . . . . AOE 55 | . 37 . 18 . . . Terrain Rammed . | . . . . . . . Walls Destroyed . | . . . . . . . Machines Disabled . | . . . . . . . Actions | -11 -10 -10 -9 -9 -9 -8 --------- Run | Yrd Mat Min Mat Min Exi Min Total 4692 | 50 928 591 1515 732 426 450 Wait 240 | . 61 14 99 62 4 . Move 4182 | 40 800 553 1317 633 413 426 Hop 7 | . . . 7 . . . Pick Up 23 | . 8 2 5 5 1 2 Fast Attach 28 | 7 6 2 6 5 2 . Attach 4 | . 1 1 2 . . . Detach 2 | . 2 . . . . . Swap 9 | . 2 . 4 2 1 . Drop 37 | . 10 4 8 8 5 2 Fire 121 | 3 35 13 47 11 . 12 Melee 2 | . . . 1 1 . . Ram . | . . . . . . . Kick . | . . . . . . . Crush . | . . . . . . . Escape Stasis . | . . . . . . . Rewire . | . . . . . . . Trap . | . . . . . . . Miscellaneous 37 | . 3 2 19 5 . 8 Route ------- -11/Scrapyard -10/Materials (discovered 6 exits: *Mat x3 / *Min x2 / Sub) -10/Mines (discovered 3 exits: *Mat x2 / *Sub) -9/Materials (discovered 5 exits: *Mat x3 / *Min x2) -9/Mines (discovered 3 exits: *Mat x2 / *Exi) -9/Exiles (discovered 2 exits: *Min x2) -8/Mines (discovered 1 exit: *Mat) History --------- Turn | Location | Event 1 | -11/Scrapyard | Upgraded with Propulsion slot (x1) 1 | -11/Scrapyard | Upgraded with Utility slot (x2) 1 | -11/Scrapyard | Upgraded with Weapon slot (x1) 30 | -11/Scrapyard | Identified exit to Materials 30 | -11/Scrapyard | Discovered exit to Materials (range 18) 67 | -11/Scrapyard | Entered Materials 112 | -10/Materials | Upgraded with Weapon slot (x1) 351 | -10/Materials | Identified exit to Materials 351 | -10/Materials | Discovered exit to Materials (range 6) 424 | -10/Materials | Build established: Hacker-Gunner 514 | -10/Materials | Identified exit to Mines 514 | -10/Materials | Discovered exit to Mines (range 12) 559 | -10/Materials | Discovered exit to Materials (range 17) 606 | -10/Materials | Identified exit to Subcaves 606 | -10/Materials | Discovered exit to Subcaves (range 11) 687 | -10/Materials | Discovered exit to Materials (range 9) 856 | -10/Materials | Reached level 2 873 | -10/Materials | Upgraded with Weapon slot (x1) 988 | -10/Materials | Discovered exit to Mines (range 12) 1015 | -10/Materials | Entered Mines 1021 | -10/Mines | Discovered exit to Materials (range 14) 1142 | -10/Mines | Found a damaged Exp. Sensor Array with a note attached 1145 | -10/Mines | Found Prototype Device 1145 | -10/Mines | Identified Exp. Sensor Array 1230 | -10/Mines | Assembled infested the area 1235 | -10/Mines | Assisted by a Guerilla fighting off Assembled 1328 | -10/Mines | Received a Rocket Launcher from a helpful Derelict 1416 | -10/Mines | Reached level 3 1583 | -10/Mines | Discovered exit to Subcaves (range 15) 1641 | -10/Mines | Discovered exit to Materials (range 5) 1646 | -10/Mines | Entered Materials 1648 | -9/Materials | Reached level 4 1676 | -9/Materials | Upgraded with Propulsion slot (x1) 1682 | -9/Materials | Upgraded with Propulsion slot (x1) 1825 | -9/Materials | Reached level 5 1913 | -9/Materials | Identified exit to Mines 1913 | -9/Materials | Discovered exit to Mines (range 17) 1980 | -9/Materials | Identified exit to Materials 1980 | -9/Materials | Discovered exit to Materials (range 17) 1982 | -9/Materials | Destroyed 7 combat bots 1983 | -9/Materials | Reached level 6 2030 | -9/Materials | Discovered exit to Mines (range 12) 2093 | -9/Materials | Upgraded with Utility slot (x1) 2125 | -9/Materials | Reached level 7 2133 | -9/Materials | Upgraded with Utility slot (x1) 2137 | -9/Materials | Discovered exit to Materials (range 11) 2200 | -9/Materials | Build established: Hacker-Sprinter 2345 | -9/Materials | Discovered exit to Materials (range 21) 2403 | -9/Materials | Entered Mines 2403 | -9/Mines | Accompanied by 1 ally 2452 | -9/Mines | Reached level 8 2461 | -9/Mines | Discovered exit to Materials (range 17) 2494 | -9/Mines | Learned location of Storage (-8) 2589 | -9/Mines | Found the Drone Emporium 2591 | -9/Mines | Found Prototype Device 2591 | -9/Mines | Identified Splice Drone Bay 2614 | -9/Mines | Discovered exit to Materials (range 10) 2653 | -9/Mines | A weapon hastily lodged in a ceiling crevice suddenly fell to the ground 2657 | -9/Mines | Deemed a non-threat by the Exiles lab entrance 2657 | -9/Mines | Identified exit to Exiles 2657 | -9/Mines | Discovered exit to Exiles (range 5) 2702 | -9/Mines | Entered Exiles 2702 | -9/Exiles | Accompanied by 1 ally 2706 | -9/Exiles | Identified exit to Mines 2706 | -9/Exiles | Discovered exit to Mines (range 16) 2710 | -9/Exiles | Met 8R-AWN 2713 | -9/Exiles | Met EX-HEX 2722 | -9/Exiles | Met EX-BIN 2724 | -9/Exiles | Met EX-DEC 2727 | -9/Exiles | Learned location of Zion (-7) 2771 | -9/Exiles | Aligned with FarCom system 2771 | -9/Exiles | Given EX-Vault access code 2777 | -9/Exiles | Opened EX-Vault 2780 | -9/Exiles | Found Potential Leg 2783 | -9/Exiles | Found Potential Leg 2803 | -9/Exiles | Warned to stay clear of 0b10 Research branches 2903 | -9/Exiles | Discovered exit to Mines (range 10) 2912 | -9/Exiles | Left Exiles lab with Potential Leg 2912 | -9/Exiles | Entered Mines 2912 | -8/Mines | Accompanied by 1 ally 3154 | -8/Mines | Reached level 9 3183 | -8/Mines | Discovered exit to Materials (range 3) 3197 | -8/Mines | Build established: Hacker-Skirmisher 3349 | -8/Mines | Self-destructed Last Messages --------------- 03178_ Acquired Authchip [R/Combat]. 03183_ EXIT=FOUND: MATERIALS 03187_ Technician 2a destroyed. 03187_ S-10 Pest destroyed. 03191_ Switching to secondary target: S-10 Pest. 03192_ K-01 Serf collects debris. 03194_ S-10 Pest destroyed. 03195_ K-01 Serf collects debris. 03209_ Used Protomatter to restore core integrity (+9) 03210_ Used Protomatter to restore part integrity (+3) 03212_ K-01 Serf collects debris. 03260_ S-10 Pest destroyed. 03272_ Used Protomatter to restore core integrity (+10) 03273_ Used Protomatter to restore part integrity (+2) 03302_ Critical hit (Burn: +37). 03302_ G-47 Trooper destroyed. 03306_ B-36 Bruiser destroyed. 03314_ Used Protomatter to restore core integrity (+8) 03315_ Used Protomatter to restore part integrity (+3) 03317_ K-01 Serf collects debris. Map ----- +----------------------------------------------------+ | ##???# ??????????????? | | # #??# ???????????????? | | ## ##?# #???????????????? | | ?## ### #???????????????? | | ??# ## ##??????????????? | | ### ## ???????????????? | | ## ????????????????? | | ## ?????????????????? | | ##### ???????????????????? | | ??## ????????????????????? | | ??# #?????????????????????? | | ??# #??????????????????????? | | ?## #??????????????????????? | | ## ##?????????????????????? | | # ##????????????????????? | | #????????????????????? | | #????????????????????? | | ## #?????????????####???? | | ##### ##???????????## ##??? | | ##???## #???????????# ##?? | | #????## #??????????## #?? | | ????##[%*##??????????# ??? | | ??### % ##??????????# ???? | | ### =%##?????????# #???? | | /==####???????# < #???? | | ## =% [########## @#???? | | #### * /!%! #???? | | ##??## /!=%! #???? | | ##????## = t###########???? | | #??????# * = #?????????????? | | ##??????# = #?????????????? | | ???????## * *##????????#???? | | ??????## %= ####??## ##??? | | ??????# % ## #??? | | ??????# #??? | | ??????# ##??? | | ??????## #???? | | ???????# ##???? | | ???????# # ########????? | | ???????# ## ###???????????? | | ???????## ### #?????????????? | | ????????####?# ######????????? | | ?????????????# #????????? | | ?????????????# #????????? | | ?????????????###### #????????? | | ????????????????## ####?????? | | ???????????????## ##????? | | ??????????????## #????? | | ?????????????## #????? | | ????????????## ## ##????? | +----------------------------------------------------+ Best States ------------- Heat Dissipation 99 Energy Generation 29 Energy Capacity 510 Matter Stores 300 Matter Capacity 300 Sight Range 22 Terrain Scan Density 10 Armor Coverage 150 Resistance: KI 35 Resistance: TH 35 Resistance: EX 35 Resistance: EM 35 Resistance: I 35 Resistance: S 35 Resistance: P 35 Evasion (%) 64 Offensive Hacking 20 Authchip Count 1 Item Schematics ----------------- Hvy. EM Pulse Gun | -10/Materials | Hacked Exp. Sensor Array | -9/Materials | Scanalyzed Robot Schematics ------------------ None Fabricated ------------ Nothing Alien Tech Used ----------------- None Achievements -------------- None Challenges ------------ None RPGLIKE | -11 -10 -10 -9 -9 -9 -8 --------- Run | Yrd Mat Min Mat Min Exi Min Levels Raised 8 | . 1 1 4 1 . 1 XP Earned 19067 | 6000 1615 1550 6336 1173 243 2150 XP Spent 16135 | 4650 1900 . 8335 1250 . . Upgrades 33 | 14 2 . 16 1 . . Propulsion Slot 3 | 1 . . 2 . . . Utility Slot 4 | 2 . . 2 . . . Weapon Slot 3 | 1 2 . . . . . Core Integrity 4 | . . . 4 . . . Heat Dissipation 5 | 5 . . . . . . Energy Generation 3 | . . . 3 . . . Energy Storage 2 | . . . 2 . . . Mass Support 2 | . . . 2 . . . Inventory Capacity 5 | 3 . . 1 1 . . Sight Range 2 | 2 . . . . . . Protomatter Created 617 | . 61 11 386 43 . 116 Integrity Restored 462 | . 60 33 248 47 . 74 Core 321 | . 60 33 163 16 . 49 Parts 141 | . . . 85 31 . 25 Protomatter Decayed 332 | . 17 . 249 40 . 26 Game ------ Seed StormThermicSabre Manual? 0 Play Time 00:57:40 Cumulative 246.6 hours Start 2024.08.11 @ 19:29:15 End 2024.08.13 @ 07:57:24 Sessions 4 Manual Loads 0 Difficulty Explorer Special Mode Winter2019/RPGLIKE Game No. 70 Rogue 62 Adventurer 4 Explorer 4 Win Type - Total 6 Types 2/0/1/2/0/0/0/0/1 Lore% 45 Gallery% 66 Achievement% 44 Wizard Run 0 Options --------- Layout 0 ASCII 0 Keyboard 0 Movement Mouse Keybinds 0 Fullscreen 1 Font 24/Smallcaps Map View 76x50 Zoom Use 0% Tactical HUD 1 Map Filters NONE Filters NONE Steam X RUN: cc6c8d62-a719-4209-a1b5-699067c4f1c3